Cogmind - Beta 11.1 @@@ ROGUE MODE // 2022.05.14 @ 03:27:39 Player: Olga Result: Destroyed by G-50 Soldier with Heavy Laser Performance ------------- Evolutions (4) 2000 Regions Visited (6) 1200 Robots Destroyed (1) 5 Value Destroyed (1) 1 Prototype IDs (0) 0 Alien Tech Used (0) 0 Bonus (834) 834 TOTAL SCORE: 4040 Bonus ------- Pacifist 834 Cogmind --------- Core Integrity 0/850 Matter 280/300 Energy 99/100 System Corruption 0% Temperature Cool (9) Movement Core (50) Location -6/Lower Caves Parts ------- > --- POWER (1) -------- (None) > --- PROPULSION (6) --- (None) > --- UTILITY (6) ------ Machine Analyzer > --- WEAPON (2) ------- (None) > --- INVENTORY (5) ---- Cooling System Layered Light Armor Plating Layered Light Armor Plating Layered Light Armor Plating Layered Light Armor Plating Peak State ------------ > --- POWER ------------ (None) > --- PROPULSION ------- Nuclear Pulse Thruster > --- UTILITY ---------- Machine Analyzer Improved Light Armor Plating > --- WEAPON ----------- Spear > --- INVENTORY -------- Cooling System Layered Light Armor Plating Layered Light Armor Plating Layered Light Armor Plating Layered Light Armor Plating [Rating: 16] Favorites ----------- Power None Propulsion Nuclear Pulse Thruster Flight Unit Nuclear Pulse Thruster Utility Machine Analyzer Processor Machine Analyzer Protection Improved Light Armor Plating Weapon Spear Piercing Weapon Spear Build | -11 -10 -9 -8 -7 -6 -6 ------- Run | Scr Mat Mat Mat Fac Fac Low Slots Evolved 8 | . . 2 2 2 2 . Power . | . . . . . . . Propulsion 4 | . . 2 2 . . . Utility 4 | . . . . 2 2 . Weapon . | . . . . . . . Parts Attached 5 | . . . 2 . 3 . Power . | . . . . . . . Engine . | . . . . . . . Core . | . . . . . . . Reactor . | . . . . . . . Propulsion 1 | . . . . . 1 . Treads . | . . . . . . . Leg . | . . . . . . . Wheel . | . . . . . . . Hover . | . . . . . . . Flight 1 | . . . . . 1 . Utility 3 | . . . 2 . 1 . Device . | . . . . . . . Storage . | . . . . . . . Processor 1 | . . . 1 . . . Hackware . | . . . . . . . Protection 2 | . . . 1 . 1 . Artifact . | . . . . . . . Weapon 1 | . . . . . 1 . Energy Gun . | . . . . . . . Energy Cannon . | . . . . . . . Ballistic Gun . | . . . . . . . Ballistic Cannon . | . . . . . . . Launcher . | . . . . . . . Special Weapon . | . . . . . . . Impact Weapon . | . . . . . . . Slashing Weapon . | . . . . . . . Piercing Weapon 1 | . . . . . 1 . Special Melee Weapon . | . . . . . . . Unidentified Prototypes . | . . . . . . . Parts Lost 2 | . . . . . . 2 Power . | . . . . . . . Propulsion 1 | . . . . . . 1 Utility . | . . . . . . . Weapon 1 | . . . . . . 1 Highest Loss Streak 1 | . . . . . . 1 To Critical Strikes . | . . . . . . . Average Slot Usage (%) 7 | . . . 3 7 17 10 Processor 4 | . . . 2 7 6 6 Piercing Weapon 1 | . . . . . 3 2 Naked Turns 133 | . 23 52 58 . . . Heaviest Build 5 | . . . 4 . 5 5 Greatest Support 6 | 3 3 3 3 3 6 6 Greatest Overweight (x) 1 | . . . 1 . . 1 Average Overweight (x) . | . . . . . . . Largest Inventory Capacity 5 | 5 5 5 5 5 5 5 Average Capacity 5 | 5 5 5 5 5 5 5 Most Carried 5 | 4 . . 4 5 5 5 Average Carried 3 | 2 . . 3 4 5 5 Final Capacity 5 | 5 5 5 5 5 5 5 Final Carried 5 | . . . 4 5 5 5 Class Distribution -------------------- 100% | Mutant Dominant Class ---------------- Mutant | -10/Materials Mutant | -9/Materials Mutant | -8/Materials Mutant | -7/Factory Mutant | -6/Factory Mutant | -6/Lower Caves Resources | -11 -10 -9 -8 -7 -6 -6 ----------- Run | Scr Mat Mat Mat Fac Fac Low Matter Collected 215 | 200 . . 15 . . . Remotely . | . . . . . . . Salvage Created 13 | . . . . 13 . . Parts 3 | . . . . 3 . . Haulers Intercepted . | . . . . . . . Recyclers Shooed . | . . . . . . . Parts Field Recycled . | . . . . . . . Retrieved Matter . | . . . . . . . Parts Self-Destructed 2 | . . . . . . 2 Prevented . | . . . . . . . Kills | -11 -10 -9 -8 -7 -6 -6 ------- Run | Scr Mat Mat Mat Fac Fac Low Combat Hostiles Destroyed . | . . . . . . . Classes Destroyed 1 | . . . . 1 . . Worker 1 | . . . . 1 . . Best Kill Streak 1 | . . . . 1 . . Combat Bots Only . | . . . . . . . Max Kills in Single Turn 1 | . . . . 1 . . Gunslinging . | . . . . . . . Exploded . | . . . . . . . Melee . | . . . . . . . Uniques/NPCs Destroyed . | . . . . . . . Combat | -11 -10 -9 -8 -7 -6 -6 -------- Run | Scr Mat Mat Mat Fac Fac Low Damage Taken 1292 | . 14 33 213 24 59 949 Core 1128 | . 14 33 212 19 18 832 Absorbed by Shields . | . . . . . . . Core Remaining (%) 88 | 100 94 91 61 97 . . Volleys Fired . | . . . . . . . Largest . | . . . . . . . Hottest . | . . . . . . . Shots Fired . | . . . . . . . Gun . | . . . . . . . Cannon . | . . . . . . . Launcher . | . . . . . . . Special . | . . . . . . . Kinetic . | . . . . . . . Thermal . | . . . . . . . Explosive . | . . . . . . . Electromagnetic . | . . . . . . . Robot Hit Streak . | . . . . . . . Robot Miss Streak . | . . . . . . . Penetration Max . | . . . . . . . Secondary Targets . | . . . . . . . Shots Hit Robots . | . . . . . . . Core Hits 3 | . . . . 3 . . Critical Kills . | . . . . . . . Critical Parts Destroyed . | . . . . . . . Critical Strikes . | . . . . . . . Melee Attacks . | . . . . . . . Impact . | . . . . . . . Slashing . | . . . . . . . Piercing . | . . . . . . . Sneak Attacks . | . . . . . . . Combat Hostiles . | . . . . . . . Follow-up Attacks . | . . . . . . . Damage Inflicted 66 | . 8 . 7 51 . . Guns . | . . . . . . . Cannons . | . . . . . . . Explosions . | . . . . . . . Melee . | . . . . . . . Ramming 66 | . 8 . 7 51 . . Kinetic . | . . . . . . . Thermal . | . . . . . . . Explosive . | . . . . . . . Electromagnetic . | . . . . . . . Impact . | . . . . . . . Slashing . | . . . . . . . Piercing . | . . . . . . . Highest Corruption 1 | . . . . 1 . . Average Corruption 1 | . . . . 1 . . Corruption Purged . | . . . . . . . Corruption Blocked . | . . . . . . . Overload Shots . | . . . . . . . Overflow Damage . | . . . . . . . Projectiles . | . . . . . . . Explosions . | . . . . . . . Melee . | . . . . . . . Knockbacks . | . . . . . . . Impact . | . . . . . . . Kinetic . | . . . . . . . Secondary . | . . . . . . . Self-Inflicted Damage 30 | . 3 . 3 24 . . Shots . | . . . . . . . Rammed 12 | . 2 . 4 6 . . Targets Rammed 12 | . 2 . 4 6 . . Kicked . | . . . . . . . Crushed . | . . . . . . . Highest Temperature 8 | . . . . . 8 . Average Temperature 8 | . . . . . 8 . Received Heat Transfer 216 | . 6 18 36 . 66 90 Siege Activations . | . . . . . . . Robots Corrupted . | . . . . . . . Combat Hostiles . | . . . . . . . Parts Fried . | . . . . . . . Impact Corruptions . | . . . . . . . Robots Melted . | . . . . . . . Combat Hostiles . | . . . . . . . Parts Melted . | . . . . . . . Heat Transferred . | . . . . . . . Parts Sabotaged . | . . . . . . . Parts Stolen . | . . . . . . . Parts Stripped . | . . . . . . . Power Chain Reactions . | . . . . . . . Missiles Intercepted . | . . . . . . . Alert | -11 -10 -9 -8 -7 -6 -6 ------- Run | Scr Mat Mat Mat Fac Fac Low Peak Influence 108 | . . 13 51 61 108 . Initial 29 | . . . 5 23 29 . Average 31 | . . 7 22 48 34 . Maximum Alert Level . | . . . . . . . Low Security (%) 100 | 100 100 100 100 100 100 . Level 1 . | . . . . . . . Level 2 . | . . . . . . . Level 3 . | . . . . . . . Level 4 . | . . . . . . . Level 5 . | . . . . . . . High Security . | . . . . . . . Max Security . | . . . . . . . Squads Dispatched 1 | . 1 . . . . . Investigation 1 | . 1 . . . . . Extermination . | . . . . . . . Reinforcement . | . . . . . . . Assault . | . . . . . . . Garrison . | . . . . . . . Intercept . | . . . . . . . Searches Triggered . | . . . . . . . Construction Impeded . | . . . . . . . Haulers Reinforced . | . . . . . . . Active Scanning Responses . | . . . . . . . Cargo Convoy Interrupts . | . . . . . . . Stealth | -11 -10 -9 -8 -7 -6 -6 --------- Run | Scr Mat Mat Mat Fac Fac Low Distress Signals 1 | . . 1 . . . . Communications Jammed . | . . . . . . . Distress Signals . | . . . . . . . Times Spotted 32 | . 1 3 7 2 5 14 Peak Tracking Total 9 | . 6 6 6 1 5 9 Tactical Retreats 4 | . . . . . 1 3 Traps | -11 -10 -9 -8 -7 -6 -6 ------- Run | Scr Mat Mat Mat Fac Fac Low Traps Triggered 1 | . 1 . . . . . Indirectly . | . . . . . . . Trap Hack Attempts . | . . . . . . . Triggered . | . . . . . . . Disarmed . | . . . . . . . Reprogrammed . | . . . . . . . Reused . | . . . . . . . Traps Extracted . | . . . . . . . Installed . | . . . . . . . Triggered . | . . . . . . . Machines | -11 -10 -9 -8 -7 -6 -6 ---------- Run | Scr Mat Mat Mat Fac Fac Low Machines Disabled . | . . . . . . . Max in Single Turn . | . . . . . . . Machines Sabotaged . | . . . . . . . Garrisons Compromised . | . . . . . . . Overloaded Fab Kills . | . . . . . . . Hacking | -11 -10 -9 -8 -7 -6 -6 --------- Run | Scr Mat Mat Mat Fac Fac Low Machines Accessed 6 | . . 2 2 1 1 . Terminals 6 | . . 2 2 1 1 . Fabricators . | . . . . . . . Repair Stations . | . . . . . . . Recycling Units . | . . . . . . . Scanalyzers . | . . . . . . . Garrison Access . | . . . . . . . Total Hacks 16 | . . 4 5 5 2 . Successful 10 | . . 3 3 3 1 . Failed 6 | . . 1 2 2 1 . Catastrophic 1 | . . . 1 . . . Database Lockouts . | . . . . . . . Manual 14 | . . 3 4 5 2 . Terminals 16 | . . 4 5 5 2 . Fabricators . | . . . . . . . Repair Stations . | . . . . . . . Recycling Units . | . . . . . . . Scanalyzers . | . . . . . . . Garrison Access . | . . . . . . . Terminal Hacks 4 | . . 2 1 1 . . Robot Analysis 1 | . . . 1 . . . Level Access Points 2 | . . 1 . 1 . . Terminal Index 1 | . . 1 . . . . Fabricator Hacks . | . . . . . . . Repair Station Hacks . | . . . . . . . Recycling Unit Hacks . | . . . . . . . Scanalyzer . | . . . . . . . Garrison Access Hacks . | . . . . . . . Unauthorized Hacks 6 | . . 1 2 2 1 . Terminals 6 | . . 1 2 2 1 . Assimilate 1 | . . . . 1 . . Botnet 5 | . . 1 2 1 1 . Fabricators . | . . . . . . . Repair Stations . | . . . . . . . Recycling Units . | . . . . . . . Scanalyzers . | . . . . . . . Garrison Access . | . . . . . . . Data Cores Recovered . | . . . . . . . Used . | . . . . . . . Hacking Detections 3 | . . 1 1 . 1 . Full Trace Events 1 | . . . 1 . . . Feedback Events . | . . . . . . . Feedback Blocked . | . . . . . . . Robot Schematics Acquired . | . . . . . . . Robots Built . | . . . . . . . Authchips . | . . . . . . . Time . | . . . . . . . Total Robot Build Rating . | . . . . . . . Part Schematics Acquired . | . . . . . . . Parts Built . | . . . . . . . Authchips . | . . . . . . . Time . | . . . . . . . Total Part Build Rating . | . . . . . . . Parts Repaired . | . . . . . . . Time . | . . . . . . . Parts Recycled . | . . . . . . . Recycled Matter . | . . . . . . . Retrieved Matter . | . . . . . . . Retrieved Components . | . . . . . . . Parts Scanalyzed . | . . . . . . . Part Schematics Acquired . | . . . . . . . Parts Damaged . | . . . . . . . Bothacking | -11 -10 -9 -8 -7 -6 -6 ------------ Run | Scr Mat Mat Mat Fac Fac Low Used RIF Installer . | . . . . . . . Robots Hacked . | . . . . . . . Non-combat . | . . . . . . . Combat . | . . . . . . . Robot Hacks Applied . | . . . . . . . Relay Couplers Released . | . . . . . . . Fabnet Peak Effective % . | . . . . . . . Robots Rewired . | . . . . . . . Allies Hacked . | . . . . . . . Hacks Repelled . | . . . . . . . Allies | -11 -10 -9 -8 -7 -6 -6 -------- Run | Scr Mat Mat Mat Fac Fac Low Total Allies 1 | . . . . 1 . . Largest Group 1 | . . . . 1 1 . Highest-Rated Group 10 | . . . . 10 10 . Highest-Rated Ally 10 | . . . . 10 10 . Total Orders . | . . . . . . . Ally Attacks . | . . . . . . . Total Damage . | . . . . . . . Kills . | . . . . . . . Allies Corrupted . | . . . . . . . Allies Melted . | . . . . . . . Intel | -11 -10 -9 -8 -7 -6 -6 ------- Run | Scr Mat Mat Mat Fac Fac Low Robot Analysis Total 1 | . . . 1 . . . Derelict Logs Recovered . | . . . . . . . Drone Launches . | . . . . . . . Drone Recoveries . | . . . . . . . Exploration | -11 -10 -9 -8 -7 -6 -6 ------------- Run | Scr Mat Mat Mat Fac Fac Low Turns Passed 531 | 3 23 52 98 171 72 112 Spaces Moved 1024 | 1 42 103 169 324 158 227 Core 871 | 1 42 103 169 324 39 193 Treads . | . . . . . . . Legs . | . . . . . . . Wheels . | . . . . . . . Hover . | . . . . . . . Flight 153 | . . . . . 119 34 Fastest Speed 40 | 50 50 50 50 50 40 40 Average Speed 48 | 50 50 50 51 50 42 48 Slowest Speed 100 | 50 50 50 100 50 50 100 Overloaded Moves . | . . . . . . . Propulsion Burnouts . | . . . . . . . Robots Hopped 2 | . . . . . . 2 Cave-ins Triggered . | . . . . . . . Exploration Rate (%) 17 | 2 15 17 24 13 8 46 Regions Visited 6 Branch Regions 1 Pre-discovered Areas . | . . . . . . . Known Exits Taken 2 | . . 1 . 1 . . Unknown Exits Taken 4 | 1 1 . 1 . 1 . Scrap Searched . | . . . . . . . Spaces Dug . | . . . . . . . Terrain Destroyed . | . . . . . . . Melee . | . . . . . . . Projectile . | . . . . . . . AOE . | . . . . . . . Terrain Rammed . | . . . . . . . Walls Destroyed . | . . . . . . . Machines Disabled . | . . . . . . . Actions | -11 -10 -9 -8 -7 -6 -6 --------- Run | Scr Mat Mat Mat Fac Fac Low Total 1046 | 5 43 102 178 332 160 226 Wait 2 | . . . . 2 . . Move 1015 | . 42 102 168 323 157 223 Hop 2 | . . . . . . 2 Pick Up 4 | . . . 3 1 . . Fast Attach 5 | . . . 2 . 3 . Attach . | . . . . . . . Detach 1 | . . . 1 . . . Swap . | . . . . . . . Drop 6 | 5 . . . . . 1 Fire . | . . . . . . . Melee . | . . . . . . . Ram 11 | . 1 . 4 6 . . Kick . | . . . . . . . Crush . | . . . . . . . Escape Stasis . | . . . . . . . Rewire . | . . . . . . . Trap . | . . . . . . . Miscellaneous . | . . . . . . . Route ------- -11/Scrapyard -10/Materials -9/Materials (discovered 3 exits: *Mat x3) -8/Materials -7/Factory (discovered 4 exits: *Fac x4) -6/Factory -6/Lower Caves (discovered 1 exit: [*Low]) History --------- Turn | Location | Event 1 | -11/Scrapyard | Released all parts (6) 4 | -11/Scrapyard | Discovered new exit (range 0) 4 | -11/Scrapyard | Entered Materials 18 | -10/Materials | Discovered new exit (range 16) 27 | -10/Materials | Entered another Materials area 27 | -9/Materials | Evolved 2 slots: Propulsion x2 61 | -9/Materials | Identified exit to Materials 79 | -9/Materials | Entered another Materials area 79 | -8/Materials | Evolved 2 slots: Propulsion x2 174 | -8/Materials | Discovered new exit (range 5) 177 | -8/Materials | Entered Factory 177 | -7/Factory | Evolved 2 slots: Utility x2 218 | -7/Factory | Identified exit to Factory 301 | -7/Factory | Build established: Mutant 348 | -7/Factory | Entered another Factory area 348 | -6/Factory | Accompanied by 1 ally 348 | -6/Factory | Evolved 2 slots: Utility x2 417 | -6/Factory | Discovered new exit (range 6) 420 | -6/Factory | Entered Lower Caves 487 | -6/Lower Caves | Core integrity fell below 50% 519 | -6/Lower Caves | Core integrity fell below 20% 531 | -6/Lower Caves | Discovered new exit (range 5) 532 | -6/Lower Caves | Destroyed by G-50 Soldier with Heavy Laser Last Messages --------------- 00391_ Critical hit (Burn: +37). 00395_ Technician 4a reveals location of Shock Trap. 00406_ >> Machine Analyzer network decryption results: 00406_ Repair Station x4 00416_ Connecting with Terminal... >>Trojan(Botnet) Trojan loaded successfully. Testing... Terminal linked with 0 systems. Awaiting botnet instructions. 00417_ EXIT=FOUND LOCATION=UNKNOWN GOAL=ESCAPE 00434_ Nuclear Pulse Thruster destroyed. 00436_ Dropped Imp. Light Armor Plating. 00453_ NV-31R(r) destroyed. 00472_ Spear destroyed. 00486_ S-27 Virus suffers critical hit (Destroy). 00486_ S-27 Virus destroyed. 00531_ EXIT=FOUND Map ----- +----------------------------------------------------+ | ??????????????????????????????????????????????? | | ??????????????????????????????????????????????? | | ??????????????????????????????????????????????? | | ??????????????????????????????????????????????? | | ??????????????????????????????????????????????? | | ??????????????????????????????????????????????? | | ??????????????????????????????????????????????? | | ??????????????????????????????????????????????? | | ??????????????????????????????????????????????? | | ??????????????????????????????????????????????? | | ??????????????????????????????????????????????? | | ??????????????????????????????????????????????? | | ??????????????????????????????????????????????? | | ?????????????????????????#????????????????????? | | ???????????????????????? #????????????????????? | | ???????????????????????? #????????????????????? | | ????????????????????????%#????????????????????? | | ????????????????????????%#????????????????????? | | ????????????????????????%!????????????????????? | | ?????????????????????### ##???????????????????? | | ????????????????????## ###?????????????????? | | ???????????????????## ??????????????????? | | ???????????????????# < ?????????????? ????? | | ???????????????????# #?????????????? ????? | | ???????????????????# ??????????????? ????? | | ????????????????????# @#???????????????? ????? | | ????????????????????# #??????????? ? #???? | | ????????????????????# #???????????# ##?? | | ????????????????????# ####????????# ##? | | ???????????????????## !%!#### #?## #? | | ???????????????????# ### ## ## | | ??????????????????## % ## ## # | | ??????????????##### b ######### ## | | ??????????????# gg##?????# ?# | | ??????????????# #?????# ??# | | ??????????????## #??????# #?## | | ??????????????## ##g s##??????# ### | | ??????????????# #### ##?????# ## | | ??????????????# ##??##s ##????# | | ??????????????# ##???# #????# #### | | ??????????????# #??## ###### ##??# | | ??????????????## #### #???# | | ???????????????## ## #???# | | ???????????????## ###### ##??## | | ???????????????# ##????# #??## | | ???????????????# ##?????## #?## | | ???????????????# #???????# #?# | | ???????????????## ##???????# ##?# | | ????????????????# ##????????# #??# | | ????????????????## ##?????????## #??# | +----------------------------------------------------+ Best States ------------- Heat Dissipation 37 Energy Generation 5 Energy Capacity 100 Matter Stores 300 Matter Capacity 300 Sight Range 16 Terrain Scan Density 10 Armor Coverage 150 Evasion (%) 62 Item Schematics ----------------- None Robot Schematics ------------------ None Fabricated ------------ Nothing Alien Tech Used ----------------- None Achievements -------------- None Challenges ------------ None Game ------ Seed GatlingPulseBooster Manual? 0 Play Time 00:09:20 Cumulative 256.3 hours Start 2022.05.14 @ 03:19:44 End 2022.05.14 @ 03:27:39 Sessions 1 Manual Loads 0 Difficulty Rogue Special Mode None Game No. 385 Rogue 382 Adventurer 0 Explorer 3 Win Type - Total 9 Types 9/0/0/0/0/0/0/0/0 Lore% 71 Gallery% 75 Achievement% 63 Wizard Run 0 Options --------- ASCII 1 Keyboard 1 Movement Vi Keybinds 0 Fullscreen 1 Font 18/SmallcapsGlow Map View 76x50 Tactical HUD 1 Map Filters NONE Filters NONE Steam 1 RUN: 704c37b3-25e6-4157-a68c-470985b75cb7